[Event "Titled Tuesday Blitz May 03 Late 2022"]
[White "Quesada Perez, Yuniesky"]
[Black "Janaszak, Dawid"]
[WhiteFideId "3504409"]
[BlackFideId "1119206"]
[WhiteElo "2622"]
[BlackElo "2199"]
[Result "1/2-1/2"]
[Round "03"]
[TimeControl "180+1"]
[Date "2022.05.03"]
[WhiteClock "0:00:16"]
[BlackClock "0:00:36"]

1. e4 {[%clk 0:03:00]}  c5 {[%clk 0:02:59]} 2. Nf3 {[%clk 0:03:00]}  Nc6 {[%clk 0:02:59]} 3. Bb5 {[%clk 0:02:59]}  d6 {[%clk 0:02:58]} 4. O-O {[%clk 0:02:58]}  Bd7 {[%clk 0:02:54]} 5. c3 {[%clk 0:02:54]}  Nf6 {[%clk 0:02:54]} 6. Re1 {[%clk 0:02:53]}  a6 {[%clk 0:02:48]} 7. Bf1 {[%clk 0:02:53]}  Bg4 {[%clk 0:02:44]} 8. d4 {[%clk 0:02:53]}  cxd4 {[%clk 0:02:41]} 9. cxd4 {[%clk 0:02:53]}  d5 {[%clk 0:02:39]} 10. e5 {[%clk 0:02:22]}  Ne4 {[%clk 0:02:39]} 11. Be3 {[%clk 0:02:15]}  e6 {[%clk 0:02:37]} 12. Nc3 {[%clk 0:02:13]}  Be7 {[%clk 0:02:34]} 13. h3 {[%clk 0:02:12]}  Bh5 {[%clk 0:02:33]} 14. Bd3 {[%clk 0:02:10]}  Nxc3 {[%clk 0:02:26]} 15. bxc3 {[%clk 0:02:11]}  O-O {[%clk 0:02:23]} 16. Rb1 {[%clk 0:01:45]}  Na5 {[%clk 0:02:19]} 17. Qc2 {[%clk 0:01:24]}  Bg6 {[%clk 0:02:16]} 18. Nd2 {[%clk 0:01:16]}  Rc8 {[%clk 0:02:12]} 19. Bxg6 {[%clk 0:01:13]}  fxg6 {[%clk 0:01:59]} 20. Qd3 {[%clk 0:01:12]}  Qd7 {[%clk 0:01:55]} 21. Rb6 {[%clk 0:01:10]}  Rc6 {[%clk 0:01:44]} 22. Rxc6 {[%clk 0:01:03]}  Qxc6 {[%clk 0:01:43]} 23. Nb3 {[%clk 0:01:03]}  Nc4 {[%clk 0:01:39]} 24. Rb1 {[%clk 0:00:59]}  Rc8 {[%clk 0:01:38]} 25. Nd2 {[%clk 0:00:58]}  Nxe3 {[%clk 0:01:23]} 26. fxe3 {[%clk 0:00:52]}  Qxc3 {[%clk 0:01:18]} 27. Qxc3 {[%clk 0:00:53]}  Rxc3 {[%clk 0:01:18]} 28. Rxb7 {[%clk 0:00:53]}  Bg5 {[%clk 0:01:16]} 29. Nf1 {[%clk 0:00:43]}  Bxe3+ {[%clk 0:01:13]} 30. Nxe3 {[%clk 0:00:43]}  Rxe3 {[%clk 0:01:14]} 31. Re7 {[%clk 0:00:41]}  Re4 {[%clk 0:01:09]} 32. Rxe6 {[%clk 0:00:41]}  Rxd4 {[%clk 0:01:10]} 33. Rxa6 {[%clk 0:00:42]}  Kf7 {[%clk 0:00:58]} 34. Ra7+ {[%clk 0:00:40]}  Ke6 {[%clk 0:00:58]} 35. Rxg7 {[%clk 0:00:37]}  Ra4 {[%clk 0:00:57]} 36. Rxh7 {[%clk 0:00:37]}  Rxa2 {[%clk 0:00:53]} 37. Rg7 {[%clk 0:00:36]}  d4 {[%clk 0:00:47]} 38. Rxg6+ {[%clk 0:00:31]}  Kxe5 {[%clk 0:00:48]} 39. Rg8 {[%clk 0:00:29]}  d3 {[%clk 0:00:46]} 40. Rd8 {[%clk 0:00:29]}  Ke4 {[%clk 0:00:46]} 41. h4 {[%clk 0:00:29]}  d2 {[%clk 0:00:40]} 42. Kh2 {[%clk 0:00:26]}  Ke3 {[%clk 0:00:39]} 43. Re8+ {[%clk 0:00:17]}  Kf2 {[%clk 0:00:35]} 44. Rf8+ {[%clk 0:00:17]}  Ke3 {[%clk 0:00:36]} 45. Re8+ {[%clk 0:00:17]}  Kf2 {[%clk 0:00:36]} 46. Rf8+ {[%clk 0:00:16]}  Ke3 {[%clk 0:00:36]} 47. Re8+ {[%clk 0:00:16]} 1/2-1/2


[Site "https://www.chess.com"]

[Event "Titled Tuesday Blitz May 03 Late 2022"]
[White "Richter, Nils"]
[Black "Sliwicki, Damian"]
[WhiteFideId "12990809"]
[BlackFideId "1127128"]
[WhiteElo "2243"]
[BlackElo "2084"]
[Result "0-1"]
[Round "03"]
[TimeControl "180+1"]
[Date "2022.05.03"]
[WhiteClock "0:00:11"]
[BlackClock "0:00:16"]

1. b3 {[%clk 0:03:00]}  e5 {[%clk 0:02:56]} 2. Bb2 {[%clk 0:03:01]}  Nc6 {[%clk 0:02:54]} 3. c4 {[%clk 0:03:02]}  Nf6 {[%clk 0:02:48]} 4. e3 {[%clk 0:03:01]}  d5 {[%clk 0:02:47]} 5. cxd5 {[%clk 0:03:00]}  Nxd5 {[%clk 0:02:48]} 6. Nc3 {[%clk 0:03:01]}  Be6 {[%clk 0:02:34]} 7. Nf3 {[%clk 0:03:00]}  Nxc3 {[%clk 0:02:29]} 8. dxc3 {[%clk 0:02:58]}  Be7 {[%clk 0:02:26]} 9. c4 {[%clk 0:02:56]}  Bb4+ {[%clk 0:02:22]} 10. Nd2 {[%clk 0:02:56]}  O-O {[%clk 0:02:21]} 11. a3 {[%clk 0:02:53]}  Bxd2+ {[%clk 0:02:16]} 12. Qxd2 {[%clk 0:02:54]}  Qg5 {[%clk 0:02:10]} 13. h4 {[%clk 0:02:47]}  Qg6 {[%clk 0:02:05]} 14. h5 {[%clk 0:02:44]}  Qg5 {[%clk 0:01:44]} 15. O-O-O {[%clk 0:02:13]}  Rfd8 {[%clk 0:01:36]} 16. Qc3 {[%clk 0:02:05]}  Rxd1+ {[%clk 0:01:25]} 17. Kxd1 {[%clk 0:02:06]}  Rd8+ {[%clk 0:00:53]} 18. Kc1 {[%clk 0:02:01]}  f6 {[%clk 0:00:53]} 19. g3 {[%clk 0:01:53]}  Bf5 {[%clk 0:00:49]} 20. Be2 {[%clk 0:01:49]}  Nd4 {[%clk 0:00:45]} 21. Bd1 {[%clk 0:01:43]}  Qh6 {[%clk 0:00:16]} 22. Re1 {[%clk 0:01:19]}  Ne6 {[%clk 0:00:14]} 23. g4 {[%clk 0:01:08]}  Be4 {[%clk 0:00:09]} 24. Bc2 {[%clk 0:00:52]}  Nc5 {[%clk 0:00:03]} 25. Rd1 {[%clk 0:00:46]}  Rxd1+ {[%clk 0:00:01]} 26. Kxd1 {[%clk 0:00:42]}  Qg5 {[%clk 0:00:02]} 27. b4 {[%clk 0:00:25]}  Qxg4+ {[%clk 0:00:03]} 28. Kc1 {[%clk 0:00:23]}  Qg1+ {[%clk 0:00:03]} 29. Bd1 {[%clk 0:00:20]}  Nd3+ {[%clk 0:00:04]} 30. Kd2 {[%clk 0:00:17]}  Qxf2+ {[%clk 0:00:04]} 31. Be2 {[%clk 0:00:16]}  Qe1+ {[%clk 0:00:04]} 32. Kc2 {[%clk 0:00:15]}  Nc5+ {[%clk 0:00:04]} 33. Bd3 {[%clk 0:00:10]}  Bxd3+ {[%clk 0:00:04]} 34. Qxd3 {[%clk 0:00:10]}  Nxd3 {[%clk 0:00:05]} 35. Kxd3 {[%clk 0:00:10]}  Qf2 {[%clk 0:00:06]} 36. c5 {[%clk 0:00:10]}  Qf1+ {[%clk 0:00:06]} 37. Kc2 {[%clk 0:00:09]}  c6 {[%clk 0:00:07]} 38. b5 {[%clk 0:00:09]}  Qg2+ {[%clk 0:00:08]} 39. Kb3 {[%clk 0:00:08]}  cxb5 {[%clk 0:00:08]} 40. a4 {[%clk 0:00:08]}  Qc6 {[%clk 0:00:09]} 41. a5 {[%clk 0:00:08]}  a6 {[%clk 0:00:09]} 42. Ba3 {[%clk 0:00:09]}  Qd5+ {[%clk 0:00:09]} 43. Kb2 {[%clk 0:00:08]}  Qc4 {[%clk 0:00:10]} 44. h6 {[%clk 0:00:07]}  b4 {[%clk 0:00:10]} 45. hxg7 {[%clk 0:00:07]}  bxa3+ {[%clk 0:00:10]} 46. Kxa3 {[%clk 0:00:07]}  Qxc5+ {[%clk 0:00:11]} 47. Ka4 {[%clk 0:00:07]}  Qb5+ {[%clk 0:00:12]} 48. Ka3 {[%clk 0:00:07]}  Qxa5+ {[%clk 0:00:13]} 49. Kb3 {[%clk 0:00:08]}  Qb6+ {[%clk 0:00:13]} 50. Kc4 {[%clk 0:00:08]}  Qxe3 {[%clk 0:00:14]} 51. Kb4 {[%clk 0:00:08]}  Qd4+ {[%clk 0:00:14]} 52. Ka5 {[%clk 0:00:09]}  Qc5+ {[%clk 0:00:14]} 53. Ka4 {[%clk 0:00:09]}  Qb5+ {[%clk 0:00:14]} 54. Ka3 {[%clk 0:00:09]}  e4 {[%clk 0:00:15]} 55. Ka2 {[%clk 0:00:08]}  e3 {[%clk 0:00:16]} 56. Ka3 {[%clk 0:00:09]}  e2 {[%clk 0:00:17]} 57. Ka2 {[%clk 0:00:10]}  e1=Q {[%clk 0:00:17]} 58. Ka3 {[%clk 0:00:11]}  Qa1# {[%clk 0:00:16]} 0-1


[Site "https://www.chess.com"]

[Event "Titled Tuesday Blitz May 03 Late 2022"]
[White "Romero Ruscalleda, Josep"]
[Black "Miszler, Levente"]
[WhiteFideId "2231859"]
[BlackFideId "763276"]
[WhiteElo "2274"]
[BlackElo "1966"]
[Result "0-1"]
[Round "03"]
[TimeControl "180+1"]
[Date "2022.05.03"]
[WhiteClock "0:00:03"]
[BlackClock "0:00:03"]

1. e4 {[%clk 0:03:00]}  e6 {[%clk 0:02:58]} 2. d4 {[%clk 0:03:00]}  d5 {[%clk 0:02:57]} 3. e5 {[%clk 0:03:01]}  c5 {[%clk 0:02:57]} 4. c3 {[%clk 0:03:01]}  Nc6 {[%clk 0:02:57]} 5. Be3 {[%clk 0:03:01]}  cxd4 {[%clk 0:02:53]} 6. cxd4 {[%clk 0:03:01]}  f6 {[%clk 0:02:53]} 7. exf6 {[%clk 0:03:00]}  Nxf6 {[%clk 0:02:54]} 8. Nc3 {[%clk 0:03:00]}  Bd6 {[%clk 0:02:53]} 9. Bd3 {[%clk 0:02:59]}  O-O {[%clk 0:02:52]} 10. Nge2 {[%clk 0:02:59]}  a6 {[%clk 0:02:50]} 11. a3 {[%clk 0:02:51]}  Qc7 {[%clk 0:02:50]} 12. Qc2 {[%clk 0:02:49]}  Bd7 {[%clk 0:02:49]} 13. Ng3 {[%clk 0:02:44]}  e5 {[%clk 0:02:43]} 14. dxe5 {[%clk 0:02:42]}  Nxe5 {[%clk 0:02:44]} 15. Bf5 {[%clk 0:02:25]}  Rae8 {[%clk 0:02:38]} 16. Bxd7 {[%clk 0:02:22]}  Qxd7 {[%clk 0:02:39]} 17. O-O {[%clk 0:02:20]}  Neg4 {[%clk 0:02:32]} 18. Bd4 {[%clk 0:02:17]}  Qf7 {[%clk 0:02:05]} 19. Rad1 {[%clk 0:02:13]}  Bxg3 {[%clk 0:02:05]} 20. fxg3 {[%clk 0:02:07]}  Nxh2 {[%clk 0:01:57]} 21. Rxf6 {[%clk 0:01:58]}  Qh5 {[%clk 0:01:36]} 22. Rf4 {[%clk 0:00:58]}  Ng4 {[%clk 0:01:11]} 23. Rxg4 {[%clk 0:00:57]}  Qxg4 {[%clk 0:01:12]} 24. Nxd5 {[%clk 0:00:51]}  Re2 {[%clk 0:01:00]} 25. Ne3 {[%clk 0:00:42]}  Qh5 {[%clk 0:00:33]} 26. Qc4+ {[%clk 0:00:37]}  Kh8 {[%clk 0:00:33]} 27. g4 {[%clk 0:00:36]}  Qb5 {[%clk 0:00:19]} 28. Qxb5 {[%clk 0:00:32]}  axb5 {[%clk 0:00:20]} 29. Nf5 {[%clk 0:00:30]}  Rf7 {[%clk 0:00:17]} 30. Bc3 {[%clk 0:00:24]}  Re8 {[%clk 0:00:17]} 31. Nd6 {[%clk 0:00:20]}  Rd7 {[%clk 0:00:17]} 32. Bxg7+ {[%clk 0:00:13]}  Rxg7 {[%clk 0:00:07]} 33. Nxb5 {[%clk 0:00:11]}  Rxg4 {[%clk 0:00:04]} 34. Rd7 {[%clk 0:00:09]}  Re2 {[%clk 0:00:04]} 35. Nd6 {[%clk 0:00:06]}  Rgxg2+ {[%clk 0:00:04]} 36. Kf1 {[%clk 0:00:06]}  Rgf2+ {[%clk 0:00:04]} 37. Kg1 {[%clk 0:00:07]}  Rg2+ {[%clk 0:00:04]} 38. Kf1 {[%clk 0:00:07]}  Rxb2 {[%clk 0:00:03]} 39. Nf7+ {[%clk 0:00:05]}  Kg8 {[%clk 0:00:03]} 40. Nh6+ {[%clk 0:00:05]}  Kf8 {[%clk 0:00:03]} 41. Rxh7 {[%clk 0:00:04]}  Rh2 {[%clk 0:00:03]} 42. Kg1 {[%clk 0:00:03]}  Rhg2+ {[%clk 0:00:03]} 43. Kf1 {[%clk 0:00:03]}  Rgc2 {[%clk 0:00:03]} 0-1


[Site "https://www.chess.com"]

[Event "Titled Tuesday Blitz May 03 Late 2022"]
[White "Sadovsky, Artem"]
[Black "Zanette, Edgard Vinicius"]
[WhiteFideId "4155840"]
[BlackFideId "2109263"]
[WhiteElo "2314"]
[BlackElo "2182"]
[Result "0-1"]
[Round "03"]
[TimeControl "180+1"]
[Date "2022.05.03"]
[WhiteClock "0:02:19"]
[BlackClock "0:02:05"]

1. e4 {[%clk 0:03:00]}  c5 {[%clk 0:02:58]} 2. Nf3 {[%clk 0:03:01]}  d6 {[%clk 0:02:58]} 3. c3 {[%clk 0:03:00]}  Nf6 {[%clk 0:02:57]} 4. h3 {[%clk 0:02:59]}  Nc6 {[%clk 0:02:51]} 5. d4 {[%clk 0:02:54]}  cxd4 {[%clk 0:02:51]} 6. cxd4 {[%clk 0:02:54]}  Nxe4 {[%clk 0:02:19]} 7. d5 {[%clk 0:02:52]}  Qa5+ {[%clk 0:02:19]} 8. Nbd2 {[%clk 0:02:36]}  Nxd2 {[%clk 0:02:14]} 9. Bxd2 {[%clk 0:02:35]}  Qxd5 {[%clk 0:02:13]} 10. Qa4 {[%clk 0:02:27]}  Bf5 {[%clk 0:02:08]} 11. Be2 {[%clk 0:02:23]}  Qe4 {[%clk 0:02:06]} 12. Be3 {[%clk 0:02:19]}  Qxa4 {[%clk 0:02:05]} 0-1


[Site "https://www.chess.com"]

[Event "Titled Tuesday Blitz May 03 Late 2022"]
[White "Sarkar, Justin"]
[Black "Sanchez Alvares, Kelvin Antonio"]
[WhiteFideId "2010011"]
[BlackFideId "3906680"]
[WhiteElo "2038"]
[BlackElo "2193"]
[Result "0-1"]
[Round "03"]
[TimeControl "180+1"]
[Date "2022.05.03"]
[WhiteClock "0:00:01"]
[BlackClock "0:01:04"]

1. d4 {[%clk 0:03:00]}  Nf6 {[%clk 0:02:59]} 2. c4 {[%clk 0:02:59]}  c5 {[%clk 0:02:59]} 3. d5 {[%clk 0:02:58]}  g6 {[%clk 0:02:59]} 4. Nc3 {[%clk 0:02:55]}  Bg7 {[%clk 0:02:58]} 5. e4 {[%clk 0:02:46]}  d6 {[%clk 0:02:57]} 6. Be2 {[%clk 0:02:30]}  e6 {[%clk 0:02:46]} 7. Bg5 {[%clk 0:02:22]}  h6 {[%clk 0:02:45]} 8. Bh4 {[%clk 0:01:59]}  exd5 {[%clk 0:02:43]} 9. exd5 {[%clk 0:01:57]}  O-O {[%clk 0:02:40]} 10. Nf3 {[%clk 0:01:42]}  Bg4 {[%clk 0:02:38]} 11. O-O {[%clk 0:01:40]}  Nbd7 {[%clk 0:02:37]} 12. h3 {[%clk 0:01:32]}  Bxf3 {[%clk 0:02:37]} 13. Bxf3 {[%clk 0:01:33]}  a6 {[%clk 0:02:36]} 14. a4 {[%clk 0:01:31]}  Ne5 {[%clk 0:02:34]} 15. Be2 {[%clk 0:01:29]}  Qa5 {[%clk 0:02:29]} 16. f4 {[%clk 0:01:20]}  Ned7 {[%clk 0:02:28]} 17. Qd3 {[%clk 0:01:11]}  Rfe8 {[%clk 0:02:20]} 18. Rab1 {[%clk 0:00:40]}  Nh7 {[%clk 0:02:10]} 19. Kh1 {[%clk 0:00:27]}  Bd4 {[%clk 0:02:02]} 20. Ne4 {[%clk 0:00:22]}  Qc7 {[%clk 0:01:52]} 21. f5 {[%clk 0:00:21]}  Ne5 {[%clk 0:01:50]} 22. Qc2 {[%clk 0:00:20]}  g5 {[%clk 0:01:46]} 23. Bg3 {[%clk 0:00:19]}  f6 {[%clk 0:01:44]} 24. Bh5 {[%clk 0:00:16]}  Re7 {[%clk 0:01:41]} 25. Bg6 {[%clk 0:00:16]}  Rf8 {[%clk 0:01:31]} 26. b4 {[%clk 0:00:15]}  cxb4 {[%clk 0:01:22]} 27. Rxb4 {[%clk 0:00:14]}  a5 {[%clk 0:01:21]} 28. Rb5 {[%clk 0:00:09]}  Qxc4 {[%clk 0:01:21]} 29. Qxc4 {[%clk 0:00:08]}  Nxc4 {[%clk 0:01:21]} 30. Nxd6 {[%clk 0:00:07]}  Ne3 {[%clk 0:01:18]} 31. Rfb1 {[%clk 0:00:06]}  b6 {[%clk 0:01:18]} 32. Rxb6 {[%clk 0:00:01]}  Bxb6 {[%clk 0:01:17]} 33. Rxb6 {[%clk 0:00:02]}  Nxd5 {[%clk 0:01:17]} 34. Rb5 {[%clk 0:00:02]}  Nc3 {[%clk 0:01:07]} 35. Rxa5 {[%clk 0:00:02]}  Re3 {[%clk 0:01:04]} 36. Bf2 {[%clk 0:00:01]}  Re2 {[%clk 0:01:04]} 0-1


[Site "https://www.chess.com"]

[Event "Titled Tuesday Blitz May 03 Late 2022"]
[White "Semenenko, Dmytry"]
[Black "Romanchuk, Viktor"]
[WhiteFideId "14118645"]
[BlackFideId "14109271"]
[WhiteElo "2113"]
[BlackElo "2242"]
[Result "0-1"]
[Round "03"]
[TimeControl "180+1"]
[Date "2022.05.03"]
[WhiteClock "0:00:58"]
[BlackClock "0:01:21"]

1. Nf3 {[%clk 0:03:00]}  d5 {[%clk 0:02:52]} 2. c4 {[%clk 0:03:00]}  c6 {[%clk 0:02:52]} 3. e3 {[%clk 0:03:00]}  Nf6 {[%clk 0:02:53]} 4. Nc3 {[%clk 0:03:00]}  e6 {[%clk 0:02:54]} 5. d4 {[%clk 0:03:00]}  Nbd7 {[%clk 0:02:54]} 6. Bd3 {[%clk 0:03:00]}  Be7 {[%clk 0:02:54]} 7. O-O {[%clk 0:03:01]}  O-O {[%clk 0:02:55]} 8. e4 {[%clk 0:03:01]}  dxe4 {[%clk 0:02:56]} 9. Nxe4 {[%clk 0:03:01]}  c5 {[%clk 0:02:56]} 10. Nxf6+ {[%clk 0:02:53]}  Nxf6 {[%clk 0:02:57]} 11. dxc5 {[%clk 0:02:48]}  Bxc5 {[%clk 0:02:58]} 12. Qe2 {[%clk 0:02:47]}  b6 {[%clk 0:02:58]} 13. Bg5 {[%clk 0:02:43]}  Bb7 {[%clk 0:02:58]} 14. Rfd1 {[%clk 0:02:42]}  Qc7 {[%clk 0:02:58]} 15. a3 {[%clk 0:02:37]}  a5 {[%clk 0:02:56]} 16. Ne5 {[%clk 0:02:16]}  Rfd8 {[%clk 0:02:53]} 17. Bxf6 {[%clk 0:02:11]}  gxf6 {[%clk 0:02:53]} 18. Qg4+ {[%clk 0:02:04]}  Kf8 {[%clk 0:02:46]} 19. Nf3 {[%clk 0:01:54]}  f5 {[%clk 0:02:26]} 20. Qh5 {[%clk 0:01:52]}  Bxf3 {[%clk 0:02:17]} 21. Qxf3 {[%clk 0:01:51]}  Qe5 {[%clk 0:02:14]} 22. Qh5 {[%clk 0:01:34]}  Qxb2 {[%clk 0:02:03]} 23. Rab1 {[%clk 0:01:31]}  Qxf2+ {[%clk 0:01:57]} 24. Kh1 {[%clk 0:01:31]}  Rd4 {[%clk 0:01:45]} 25. Qxh7 {[%clk 0:01:24]}  Rh4 {[%clk 0:01:38]} 26. Rf1 {[%clk 0:01:05]}  Rxh7 {[%clk 0:01:35]} 27. Rxf2 {[%clk 0:01:05]}  Bxf2 {[%clk 0:01:35]} 28. c5 {[%clk 0:01:01]}  Bxc5 {[%clk 0:01:34]} 29. Bb5 {[%clk 0:00:58]}  Ke7 {[%clk 0:01:30]} 30. Rd1 {[%clk 0:00:58]}  Rd8 {[%clk 0:01:28]} 31. Rf1 {[%clk 0:00:58]}  Bxa3 {[%clk 0:01:23]} 32. g4 {[%clk 0:00:58]}  fxg4 {[%clk 0:01:21]} 0-1


[Site "https://www.chess.com"]

[Event "Titled Tuesday Blitz May 03 Late 2022"]
[White "Sernecki, Franciszek"]
[Black "Jegorovas, Aleksandras"]
[WhiteFideId "1169297"]
[BlackFideId "12801950"]
[WhiteElo "2165"]
[BlackElo "2247"]
[Result "0-1"]
[Round "03"]
[TimeControl "180+1"]
[Date "2022.05.03"]
[WhiteClock "0:00:55"]
[BlackClock "0:01:33"]

1. d4 {[%clk 0:03:00]}  e6 {[%clk 0:02:58]} 2. c4 {[%clk 0:03:00]}  Nf6 {[%clk 0:02:58]} 3. Nc3 {[%clk 0:03:00]}  Bb4 {[%clk 0:02:58]} 4. Qc2 {[%clk 0:02:59]}  O-O {[%clk 0:02:57]} 5. e3 {[%clk 0:02:57]}  c5 {[%clk 0:02:55]} 6. Nf3 {[%clk 0:02:56]}  Nc6 {[%clk 0:02:47]} 7. Bd3 {[%clk 0:02:53]}  cxd4 {[%clk 0:02:47]} 8. exd4 {[%clk 0:02:52]}  d5 {[%clk 0:02:42]} 9. Be3 {[%clk 0:02:29]}  dxc4 {[%clk 0:02:38]} 10. Bxc4 {[%clk 0:02:30]}  Be7 {[%clk 0:02:31]} 11. O-O {[%clk 0:02:26]}  Nb4 {[%clk 0:02:31]} 12. Qe2 {[%clk 0:02:24]}  b6 {[%clk 0:02:31]} 13. a3 {[%clk 0:02:19]}  Nbd5 {[%clk 0:02:30]} 14. Rac1 {[%clk 0:02:06]}  Bb7 {[%clk 0:02:29]} 15. Ne5 {[%clk 0:02:01]}  Rc8 {[%clk 0:02:24]} 16. Ba2 {[%clk 0:01:57]}  Nxc3 {[%clk 0:02:24]} 17. bxc3 {[%clk 0:01:55]}  Bxa3 {[%clk 0:02:23]} 18. Rc2 {[%clk 0:01:52]}  Be4 {[%clk 0:02:18]} 19. Rd2 {[%clk 0:01:45]}  Rxc3 {[%clk 0:02:18]} 20. Rfd1 {[%clk 0:01:37]}  Rc1 {[%clk 0:02:09]} 21. Bg5 {[%clk 0:01:36]}  Rxd1+ {[%clk 0:02:06]} 22. Rxd1 {[%clk 0:01:36]}  Bd5 {[%clk 0:02:04]} 23. Bb1 {[%clk 0:01:35]}  Be7 {[%clk 0:02:00]} 24. Bxf6 {[%clk 0:01:23]}  Bxf6 {[%clk 0:01:59]} 25. Qh5 {[%clk 0:01:23]}  g6 {[%clk 0:01:56]} 26. Qh3 {[%clk 0:01:20]}  Bxe5 {[%clk 0:01:56]} 27. dxe5 {[%clk 0:01:20]}  Qg5 {[%clk 0:01:56]} 28. g3 {[%clk 0:01:10]}  Qxe5 {[%clk 0:01:49]} 29. Qh6 {[%clk 0:01:08]}  Rc8 {[%clk 0:01:46]} 30. Qd2 {[%clk 0:01:07]}  Qc3 {[%clk 0:01:41]} 31. Qe2 {[%clk 0:01:03]}  Bf3 {[%clk 0:01:37]} 32. Bxg6 {[%clk 0:00:56]}  Bxe2 {[%clk 0:01:34]} 33. Bxh7+ {[%clk 0:00:55]}  Kxh7 {[%clk 0:01:33]} 0-1


[Site "https://www.chess.com"]

[Event "Titled Tuesday Blitz May 03 Late 2022"]
[White "Shimanov, Aleksandr"]
[Black "Trost, Edvin"]
[WhiteFideId "4198603"]
[BlackFideId "1729519"]
[WhiteElo "2636"]
[BlackElo "2160"]
[Result "1-0"]
[Round "03"]
[TimeControl "180+1"]
[Date "2022.05.03"]
[WhiteClock "0:01:03"]
[BlackClock "0:00:11"]

1. e4 {[%clk 0:03:00]}  e5 {[%clk 0:02:51]} 2. Nf3 {[%clk 0:02:52]}  d6 {[%clk 0:02:44]} 3. Nc3 {[%clk 0:02:53]}  Nf6 {[%clk 0:02:44]} 4. h3 {[%clk 0:02:46]}  Be7 {[%clk 0:02:41]} 5. d3 {[%clk 0:02:44]}  O-O {[%clk 0:02:40]} 6. g4 {[%clk 0:02:44]}  Nc6 {[%clk 0:02:38]} 7. Bg2 {[%clk 0:02:44]}  Nd7 {[%clk 0:02:19]} 8. Be3 {[%clk 0:02:39]}  Nc5 {[%clk 0:02:15]} 9. Nd5 {[%clk 0:02:36]}  Ne6 {[%clk 0:02:13]} 10. c3 {[%clk 0:02:35]}  Re8 {[%clk 0:01:57]} 11. O-O {[%clk 0:02:28]}  Bf8 {[%clk 0:01:48]} 12. Re1 {[%clk 0:02:22]}  Ne7 {[%clk 0:01:48]} 13. d4 {[%clk 0:02:13]}  exd4 {[%clk 0:01:41]} 14. cxd4 {[%clk 0:02:13]}  c6 {[%clk 0:01:37]} 15. Nc3 {[%clk 0:02:09]}  Ng6 {[%clk 0:01:32]} 16. Qd2 {[%clk 0:02:09]}  Bd7 {[%clk 0:01:22]} 17. Rad1 {[%clk 0:02:06]}  Qf6 {[%clk 0:01:17]} 18. e5 {[%clk 0:02:02]}  Qd8 {[%clk 0:01:11]} 19. g5 {[%clk 0:01:38]}  c5 {[%clk 0:00:53]} 20. dxc5 {[%clk 0:01:33]}  Bc6 {[%clk 0:00:37]} 21. exd6 {[%clk 0:01:30]}  b6 {[%clk 0:00:33]} 22. b4 {[%clk 0:01:28]}  a5 {[%clk 0:00:32]} 23. b5 {[%clk 0:01:27]}  Bxf3 {[%clk 0:00:30]} 24. Bxf3 {[%clk 0:01:27]}  bxc5 {[%clk 0:00:27]} 25. d7 {[%clk 0:01:23]}  Re7 {[%clk 0:00:18]} 26. Bxa8 {[%clk 0:01:21]}  Qxa8 {[%clk 0:00:15]} 27. d8=Q {[%clk 0:01:20]}  Nxd8 {[%clk 0:00:15]} 28. Qxd8 {[%clk 0:01:21]}  Qf3 {[%clk 0:00:16]} 29. Qc8 {[%clk 0:01:09]}  Ne5 {[%clk 0:00:11]} 30. Qxf8+ {[%clk 0:01:03]} 1-0


[Site "https://www.chess.com"]

[Event "Titled Tuesday Blitz May 03 Late 2022"]
[White "Suarez Uriel, Adrian"]
[Black "Sargsyan, Anna M."]
[WhiteFideId "22230874"]
[BlackFideId "13308130"]
[WhiteElo "2316"]
[BlackElo "2271"]
[Result "1-0"]
[Round "03"]
[TimeControl "180+1"]
[Date "2022.05.03"]
[WhiteClock "0:00:33"]
[BlackClock "0:00:03"]

1. e4 {[%clk 0:03:00]}  e5 {[%clk 0:03:00]} 2. Nf3 {[%clk 0:03:01]}  Nc6 {[%clk 0:03:00]} 3. Bb5 {[%clk 0:03:01]}  a6 {[%clk 0:03:00]} 4. Ba4 {[%clk 0:03:02]}  Nf6 {[%clk 0:03:01]} 5. d3 {[%clk 0:03:02]}  b5 {[%clk 0:02:57]} 6. Bb3 {[%clk 0:03:01]}  Bc5 {[%clk 0:02:58]} 7. O-O {[%clk 0:03:01]}  d6 {[%clk 0:02:57]} 8. Nc3 {[%clk 0:03:01]}  h6 {[%clk 0:02:57]} 9. a3 {[%clk 0:03:01]}  O-O {[%clk 0:02:57]} 10. Ne2 {[%clk 0:03:01]}  d5 {[%clk 0:02:49]} 11. exd5 {[%clk 0:03:01]}  Nxd5 {[%clk 0:02:50]} 12. Ng3 {[%clk 0:03:01]}  Be6 {[%clk 0:02:49]} 13. Re1 {[%clk 0:03:01]}  f6 {[%clk 0:02:42]} 14. d4 {[%clk 0:02:54]}  Nxd4 {[%clk 0:02:35]} 15. Nxd4 {[%clk 0:02:53]}  Bxd4 {[%clk 0:02:35]} 16. c3 {[%clk 0:02:33]}  Bb6 {[%clk 0:02:34]} 17. Nf5 {[%clk 0:02:30]}  c6 {[%clk 0:01:29]} 18. Qg4 {[%clk 0:02:13]}  Bxf5 {[%clk 0:01:26]} 19. Qxf5 {[%clk 0:02:14]}  Qc8 {[%clk 0:01:21]} 20. Qg6 {[%clk 0:02:10]}  Qe8 {[%clk 0:01:20]} 21. Qe4 {[%clk 0:02:08]}  Qh5 {[%clk 0:01:11]} 22. Bxd5+ {[%clk 0:01:55]}  cxd5 {[%clk 0:01:12]} 23. Qxd5+ {[%clk 0:01:56]}  Kh8 {[%clk 0:01:13]} 24. Be3 {[%clk 0:01:55]}  Bxe3 {[%clk 0:01:10]} 25. Rxe3 {[%clk 0:01:56]}  Rad8 {[%clk 0:01:10]} 26. Qe6 {[%clk 0:01:56]}  Rd2 {[%clk 0:00:59]} 27. h3 {[%clk 0:01:32]}  Rfd8 {[%clk 0:00:47]} 28. Qe7 {[%clk 0:01:20]}  R8d7 {[%clk 0:00:39]} 29. Qe6 {[%clk 0:01:16]}  R7d6 {[%clk 0:00:27]} 30. Qe7 {[%clk 0:01:12]}  Rd7 {[%clk 0:00:20]} 31. Qe6 {[%clk 0:01:12]}  Kh7 {[%clk 0:00:20]} 32. Rae1 {[%clk 0:01:08]}  Qh4 {[%clk 0:00:08]} 33. Rf3 {[%clk 0:01:05]}  Qg5 {[%clk 0:00:06]} 34. b4 {[%clk 0:00:59]}  Rd8 {[%clk 0:00:05]} 35. Qxa6 {[%clk 0:00:57]}  Rd1 {[%clk 0:00:04]} 36. Rxd1 {[%clk 0:00:56]}  Rxd1+ {[%clk 0:00:04]} 37. Kh2 {[%clk 0:00:56]}  Qc1 {[%clk 0:00:05]} 38. Qe6 {[%clk 0:00:41]}  Rh1+ {[%clk 0:00:05]} 39. Kg3 {[%clk 0:00:40]}  h5 {[%clk 0:00:02]} 40. h4 {[%clk 0:00:36]}  Qh6 {[%clk 0:00:01]} 41. Qf5+ {[%clk 0:00:35]}  Qg6+ {[%clk 0:00:01]} 42. Qxg6+ {[%clk 0:00:35]}  Kxg6 {[%clk 0:00:02]} 43. Rd3 {[%clk 0:00:33]}  Ra1 {[%clk 0:00:02]} 44. Rd5 {[%clk 0:00:33]}  Rxa3 {[%clk 0:00:02]} 45. Rc5 {[%clk 0:00:33]}  Rxc3+ {[%clk 0:00:03]} 46. Rxc3 {[%clk 0:00:33]} 1-0


[Site "https://www.chess.com"]